bitfinex/quotes_SOLUSD_20250908
["timestamp","ask_amount","ask_price","bid_price","bid_amount"]
[1757337236724,11.20712615,216.08,216.07,38.9]
[1757337238022,10.53712615,216.08,216.07,38.9]
[1757337238216,0.06,216.08,216.07,38.9]
[1757337238416,10.53712615,216.08,216.07,38.9]
[1757337240620,0.73,216.08,216.07,38.9]
[1757337240821,0.06,216.08,216.07,38.9]
[1757337241015,0.73,216.08,215.99,38.7]
[1757337241229,10.47712615,216.0,215.99,38.7]
[1757337241828,0.06,216.08,215.99,38.7]
[1757337241829,0.67,216.06,215.99,39.39]
[1757337242024,0.67,216.06,215.99,44.01981047]
[1757337242243,0.67,216.06,215.99,54.9044204]
[1757337242430,10.47712615,216.04,215.99,54.9044204]
[1757337242741,10.47712615,216.05,216.0,0.69]
[1757337243438,0.06,216.08,216.01,4.6294153]
[1757337243620,10.47712615,216.02,215.97,0.03]
[1757337243826,0.67,216.01,215.98,1.28]
[1757337244022,10.47712615,215.99,215.98,1.28]
[1757337244230,0.67,215.99,215.98,1.28]
[1757337244427,11.14712615,215.99,215.98,1.28]
[1757337245146,10.47712615,215.99,215.98,1.28]
[1757337245438,11.16712615,215.99,215.98,1.28]
[1757337246745,15.79697012,215.99,215.98,1.28]
[1757337247129,11.16712615,215.99,215.98,1.28]
[1757337247932,15.79697012,215.99,215.98,1.28]
[1757337248727,0.69,215.99,215.97,0.03]
[1757337248935,10.47712615,215.98,215.97,0.03]
[1757337249250,11.16712615,215.98,215.97,0.03]
[1757337249428,4.62834397,216.06,215.97,0.03]
[1757337249632,0.69,216.05,215.97,0.03]
[1757337249831,10.47712615,215.98,215.97,0.03]
[1757337250336,0.69,216.01,215.97,0.03]
[1757337250528,10.47712615,215.98,215.97,0.03]
[1757337250945,11.16712615,215.98,215.97,0.03]
[1757337251140,10.47712615,215.98,215.97,0.03]
[1757337251354,11.16712615,215.98,215.97,0.03]
[1757337253746,0.69,215.98,215.97,0.03]
[1757337253946,11.16712615,215.98,215.97,0.03]
[1757337254153,15.79718448,215.98,215.97,0.03]
[1757337254549,11.16712615,215.98,215.97,0.03]
[1757337254932,10.47712615,215.98,215.97,0.03]
[1757337255134,0.69,216.0,215.97,0.03]
[1757337255426,10.47712615,215.98,215.97,0.03]
[1757337257656,133.09,216.01,215.97,0.03]
[1757337257958,10.47712615,215.98,215.97,0.03]
[1757337259436,132.4,216.01,215.97,0.03]
[1757337259641,10.47712615,215.98,215.97,0.03]
[1757337260030,132.4,216.01,215.97,0.03]
[1757337260361,5.31878678,216.04,215.97,0.74]
[1757337260656,10.47712615,216.03,215.97,16.94583745]
[1757337260834,10.47712615,216.03,215.98,0.71]
[1757337261032,10.47712615,216.03,215.99,39.21]
[1757337261252,10.47712615,216.03,215.99,38.5]
[1757337261450,0.69,216.05,215.99,38.5]
[1757337261654,10.47712615,216.0,215.97,26.03]
[1757337261851,10.47712615,215.99,215.98,38.48]
[1757337262637,10.47712615,215.99,215.97,0.03]
[1757337262953,10.47712615,215.98,215.97,0.03]
[1757337263162,10.47712615,215.98,215.97,38.47]
[1757337264257,10.47712615,215.98,215.97,0.03]
[1757337264457,11.16712615,215.98,215.97,38.45]
[1757337264662,15.79718448,215.98,215.97,0.03]
[1757337264954,5.32005833,215.98,215.97,0.03]
[1757337265156,15.79718448,215.98,215.97,38.43]
[1757337265738,0.69,215.98,215.97,38.43]
[1757337265945,11.16712615,215.98,215.97,38.43]
[1757337266149,15.79718448,215.98,215.97,38.43]
[1757337267646,15.79718448,215.98,215.97,0.03]
[1757337267861,51.69,216.0,215.97,38.35]
[1757337268052,10.47712615,215.98,215.97,38.35]
[1757337269755,10.47712615,215.98,215.97,0.03]
[1757337269943,51.0,216.0,215.97,38.35]
[1757337270137,10.47712615,215.98,215.97,38.35]
[1757337270351,10.47712615,215.98,215.97,0.03]
[1757337270660,10.47712615,215.98,215.97,38.33]
[1757337270844,51.0,216.0,215.97,38.33]
[1757337271460,10.47712615,215.98,215.97,38.33]
[1757337272282,10.47712615,215.99,215.97,38.33]
[1757337272565,10.47712615,215.98,215.97,0.03]
[1757337272771,50.9,216.0,215.97,0.03]
[1757337272946,50.9,216.0,215.97,38.29]
[1757337273147,10.47712615,215.99,215.97,38.29]
[1757337273348,50.9,216.0,215.97,38.29]
[1757337273647,10.47712615,215.98,215.97,0.03]
[1757337273859,10.47712615,215.98,215.97,38.29]
[1757337274370,0.06,216.01,215.97,38.29]
[1757337274549,0.75,216.01,215.97,38.29]
[1757337274749,10.47712615,215.99,215.97,38.29]
[1757337275157,10.47712615,215.98,215.97,38.29]
[1757337275366,11.16712615,215.98,215.97,38.25]
[1757337275542,11.16712615,215.98,215.97,0.03]
[1757337275855,10.47712615,215.98,215.97,38.23]
[1757337276972,5.30971733,216.0,215.97,38.23]
[1757337277168,10.47712615,215.98,215.97,38.23]
[1757337277377,11.15712615,215.98,215.97,38.23]
[1757337277674,11.15712615,215.98,215.97,0.03]
[1757337277865,15.78718448,215.98,215.97,38.19]
[1757337279073,15.78718448,215.98,215.97,0.03]
[1757337279285,15.78718448,215.98,215.97,38.17]
[1757337279884,15.78718448,215.98,215.97,0.03]
[1757337283991,4.62986207,215.99,215.97,0.03]
[1757337284191,15.10698822,215.99,215.98,38.06]
[1757337285399,15.78698822,215.99,215.98,38.06]
[1757337285775,10.47712615,215.99,215.98,38.06]
[1757337285974,15.16681036,216.0,215.98,38.06]
[1757337286180,10.47712615,215.99,215.98,38.06]
[1757337286391,7.02308141,215.99,215.98,38.06]
[1757337286694,4.68968421,216.0,215.98,38.06]
[1757337286900,5.36968421,216.0,215.98,38.06]
[1757337288382,0.68,215.99,215.97,0.03]
[1757337288581,7.02308141,215.98,215.97,0.03]
[1757337288786,7.70308141,215.98,215.97,0.03]
[1757337289191,12.33313974,215.98,215.97,0.03]
[1757337290298,8.16407243,215.98,215.97,0.03]
[1757337294395,50.84,215.96,215.94,28.35]
[1757337294595,50.74,215.95,215.94,28.35]
[1757337295483,0.06,216.0,215.94,0.03]
[1757337295686,50.74,215.96,215.94,0.71]
[1757337295888,50.8,216.0,215.94,0.71]
[1757337296088,55.42967903,216.0,215.94,0.71]
[1757337296286,50.8,216.0,215.94,0.71]
[1757337297323,55.42970472,216.0,215.94,0.71]
[1757337297499,0.06,216.0,215.94,0.71]
[1757337297694,4.68968432,216.0,215.94,0.71]
[1757337298109,4.68968432,216.0,215.95,37.94]
[1757337298309,4.68968432,216.0,215.95,38.62]
[1757337298508,0.06,216.0,215.96,0.68]
[1757337298693,0.06,216.0,215.95,37.94]
[1757337299294,0.68,215.99,215.95,37.94]
[1757337299495,0.06,216.0,215.95,37.94]
[1757337300010,0.06,216.0,215.96,37.94]
[1757337300011,0.68,215.99,215.96,37.94]
[1757337300216,0.06,216.0,215.97,37.92]
[1757337301007,0.06,216.0,215.98,0.68]
[1757337301390,0.06,216.0,215.99,0.68]
[1757337302215,0.06,216.0,215.99,37.92]
[1757337302410,0.06,216.0,215.99,38.6]
[1757337304015,0.06,216.0,215.99,43.22984397]
[1757337305596,0.06,216.01,215.99,43.22984397]
[1757337305816,0.06,216.01,216.0,0.68]
[1757337306125,0.06,216.01,216.0,37.96]
[1757337306296,0.06,216.01,216.0,38.0]
[1757337306718,0.06,216.01,215.96,0.03]
[1757337306892,0.72,216.01,215.96,0.03]
[1757337307099,0.66,216.0,215.96,0.03]
[1757337307509,2.9140141,216.01,215.97,38.02]
[1757337307819,0.72,216.01,215.97,38.02]
[1757337308115,4.62984397,215.99,215.96,0.03]
[1757337308326,0.66,216.0,215.98,38.02]
[1757337308519,4.6296602,216.0,215.98,38.02]
[1757337308716,0.66,215.99,215.98,38.02]
[1757337309612,0.66,215.99,215.96,0.03]
[1757337309823,2.8540141,215.97,215.96,0.03]
[1757337310002,7.48428682,215.97,215.96,0.03]
[1757337310208,8.14428682,215.97,215.96,0.03]
[1757337311426,19.71996862,215.97,215.94,0.03]
[1757337311620,16.86595452,215.97,215.94,0.03]
[1757337311801,40.2700705,215.95,215.85,37.98]
[1757337311997,2.8540141,215.86,215.85,37.98]
[1757337312420,7.03143193,215.86,215.85,37.98]
[1757337312819,7.03143193,215.86,215.82,0.68]
[1757337313025,7.03143193,215.83,215.81,33.33]
[1757337313220,7.03143193,215.82,215.81,33.33]
[1757337313522,7.69143193,215.82,215.81,71.29]
[1757337313714,7.69143193,215.82,215.81,33.33]
[1757337313915,7.03143193,215.82,215.81,71.27]
[1757337314227,7.03143193,215.82,215.81,37.97]
[1757337314523,12.3249228,215.82,215.81,37.97]
[1757337314914,12.3249228,215.82,215.81,0.03]
[1757337315113,19.35635473,215.82,215.81,0.03]
[1757337315323,30.94008191,215.82,215.78,0.03]
[1757337315506,7.03143193,215.79,215.78,0.03]
[1757337315925,7.69143193,215.79,215.78,0.03]
[1757337316227,12.32556696,215.79,215.78,0.03]
[1757337317427,7.03143193,215.79,215.78,0.03]
[1757337317632,7.69143193,215.79,215.78,0.03]
[1757337318209,26.0,215.85,215.78,0.03]
[1757337318210,5.29356948,215.82,215.78,0.03]
[1757337318423,7.03143193,215.79,215.78,0.03]
[1757337318827,7.03143193,215.79,215.78,0.71]
[1757337319210,7.03143193,215.79,215.78,0.03]
[1757337319610,7.03143193,215.79,215.78,37.91]
[1757337320519,12.32556696,215.79,215.78,37.91]
[1757337320842,11.58414405,215.82,215.78,37.91]
[1757337320843,11.58239136,215.85,215.78,0.03]
[1757337321008,7.03143193,215.79,215.78,0.03]
[1757337321211,7.03143193,215.87,215.78,0.03]
[1757337321212,5.29263226,215.86,215.78,0.03]
[1757337321432,7.03143193,215.79,215.78,0.03]
[1757337321820,7.69143193,215.79,215.78,0.03]
[1757337322336,0.66,215.79,215.78,0.03]
[1757337322644,13.9691731,215.81,215.78,0.03]
[1757337322833,7.03143193,215.8,215.78,0.03]
[1757337323017,7.03143193,215.79,215.78,0.03]
[1757337323219,7.03143193,215.79,215.78,37.87]
[1757337323941,7.03143193,215.79,215.78,38.55]
[1757337324135,7.03143193,215.79,215.78,37.87]
[1757337324837,7.03143193,215.8,215.78,37.87]
[1757337325218,0.06,215.81,215.78,37.87]
[1757337325431,7.03143193,215.8,215.78,37.87]
[1757337325620,0.06,215.81,215.78,37.87]
[1757337325821,0.06,215.81,215.79,0.68]
[1757337326229,0.06,215.81,215.8,0.68]
[1757337326515,7.09143193,215.81,215.8,37.8]
[1757337326716,7.75143193,215.81,215.8,37.8]
[1757337326939,12.3851375,215.81,215.8,37.8]
[1757337327243,23.96940143,215.81,215.78,37.83]
[1757337327538,0.66,215.8,215.78,37.83]
[1757337327753,7.03143193,215.79,215.78,37.83]
[1757337328236,50.8,215.8,215.78,37.83]
[1757337328435,57.83143193,215.8,215.78,37.83]
[1757337328616,50.8,215.8,215.78,38.51]
[1757337329017,50.8,215.8,215.78,37.83]
[1757337329324,50.8,215.8,215.79,0.68]
[1757337329737,0.06,215.84,215.8,26.0]
[1757337329954,0.06,215.86,215.81,26.62]
[1757337330154,0.06,215.86,215.81,40.51628738]
[1757337330454,0.06,215.86,215.82,0.62]
[1757337330643,0.06,215.86,215.85,26.0]
[1757337330818,0.06,215.86,215.83,0.62]
[1757337331020,0.06,215.86,215.83,5.2532312]
[1757337331238,0.06,215.86,215.84,39.08]
[1757337331738,0.06,215.86,215.82,26.62]
[1757337331943,0.06,215.86,215.83,38.44]
[1757337332122,0.06,215.86,215.84,38.44]
[1757337333333,0.06,215.86,215.85,0.62]
[1757337334632,7.03143193,216.0,215.87,26.0]
[1757337334938,7.03143193,216.0,215.89,16.21195979]
[1757337335131,7.03143193,215.98,215.9,39.06]
[1757337335644,7.69143193,215.99,215.9,39.06]
[1757337336829,7.03143193,215.98,215.9,0.62]
[1757337337029,7.03143193,215.93,215.91,38.42]
[1757337337625,7.03143193,215.93,215.85,0.62]
[1757337337841,7.03143193,215.93,215.75,0.03]
[1757337337842,7.03143193,215.9,215.75,0.03]
[1757337338157,7.03143193,215.86,215.79,23.88]
[1757337338354,7.03143193,215.86,215.8,38.4]
[1757337338528,13.90079466,215.96,215.81,0.62]
[1757337338722,0.06,216.03,215.91,26.0]
[1757337338930,0.06,216.03,215.99,26.0]
[1757337339254,0.06,216.03,216.0,38.6]
[1757337339446,0.06,216.03,216.0,39.22]
[1757337339649,0.06,216.03,216.01,0.56]
[1757337339955,0.06,216.03,216.02,38.6]
[1757337340328,0.06,216.03,216.02,39.16]
[1757337340623,0.06,216.03,216.02,39.14]
[1757337341246,0.06,216.03,216.02,5.18920099]
[1757337341451,0.06,216.03,216.02,43.76920099]
[1757337341652,0.06,216.03,216.02,26.56]
[1757337341825,0.06,216.03,216.02,39.14]
[1757337342149,0.06,216.03,216.02,43.76920099]
[1757337342541,0.06,216.03,216.02,5.18920099]
[1757337342740,0.06,216.03,216.02,0.56]
[1757337342927,0.06,216.03,216.02,5.18920099]
[1757337343123,0.06,216.03,216.02,38.56]
[1757337343942,0.06,216.03,216.02,39.12]
[1757337344339,7.76143193,216.03,215.74,0.2]
[1757337344542,7.03143193,215.79,215.74,0.2]
[1757337344931,7.03143193,215.79,215.78,26.29]
[1757337345852,7.49852319,215.79,215.78,39.89]
[1757337346051,8.07852319,215.79,215.74,0.2]
[1757337346353,10.50472327,215.76,215.74,0.2]
[1757337346651,10.97181453,215.77,215.74,0.2]
[1757337347257,10.50472327,215.81,215.76,29.44]
[1757337347451,0.46709126,215.8,215.76,29.44]
[1757337347833,10.97181453,215.82,215.76,29.44]
[1757337348451,10.50472327,215.81,215.76,29.44]
[1757337348642,0.46709126,215.8,215.76,29.44]
[1757337348840,10.97181453,215.8,215.77,39.84]
[1757337349244,0.46709126,215.8,215.78,39.84]
[1757337349638,0.46709126,215.81,215.78,39.84]
[1757337349861,0.46709126,215.81,215.79,39.82]
[1757337350355,0.58,215.8,215.75,0.03]
[1757337350659,0.46709126,215.79,215.76,39.8]
[1757337351032,0.46709126,215.79,215.75,0.03]
[1757337351033,10.50472327,215.81,215.75,0.03]
[1757337351254,0.58,215.79,215.76,38.02]
[1757337351432,0.46709126,215.78,215.76,38.02]
[1757337351948,26.0,215.74,215.71,0.03]
[1757337352138,26.0,215.74,215.59,0.2]
[1757337352139,0.46709126,215.73,215.59,41.04]
[1757337352649,10.50472327,215.7,215.62,0.68]
[1757337352853,0.46709126,215.7,215.66,33.54]
[1757337353230,10.97181453,215.7,215.64,0.68]
[1757337353560,11.49181453,215.7,215.66,40.86]
[1757337353739,10.97181453,215.7,215.66,40.86]
[1757337354555,11.49181453,215.7,215.62,26.0]
[1757337354861,11.49181453,215.7,215.66,40.82]
[1757337355271,11.49181453,215.7,215.64,66.82]
[1757337355753,11.49181453,215.7,215.64,26.0]
[1757337355955,11.49181453,215.7,215.64,66.8]
[1757337356170,0.46709126,215.7,215.69,0.71]
[1757337356335,3.86412315,216.0,215.69,0.71]
[1757337356336,0.46709126,215.72,215.69,41.49]
[1757337356535,10.50472327,215.75,215.69,0.03]
[1757337356762,10.50472327,215.7,215.69,0.03]
[1757337356940,0.46709126,215.74,215.69,0.03]
[1757337357139,10.50472327,215.7,215.69,0.03]
[1757337357341,11.02472327,215.7,215.69,0.03]
[1757337357858,11.49181453,215.7,215.69,0.03]
[1757337358160,37.49181453,215.7,215.69,0.03]
[1757337359240,36.97181453,215.7,215.69,0.03]
[1757337360241,37.49181453,215.7,215.69,0.03]
[1757337360446,47.9965378,215.7,215.69,0.03]
[1757337360839,26.0,215.67,215.66,0.03]
[1757337361051,36.97181453,215.67,215.66,0.03]
[1757337361256,37.49181453,215.67,215.66,0.03]
[1757337361559,11.49181453,215.67,215.66,0.03]
[1757337361740,37.49181453,215.67,215.66,0.03]
[1757337362348,42.12852802,215.67,215.66,0.03]
[1757337363267,26.0,215.65,215.64,0.03]
[1757337363454,36.97181453,215.65,215.64,0.03]
[1757337363650,37.49181453,215.65,215.64,0.03]
[1757337363850,37.49181453,215.65,215.59,0.2]
[1757337364050,4.63735856,215.64,215.59,0.2]
[1757337364361,10.50472327,215.6,215.59,0.2]
[1757337365547,24.10031728,215.6,215.59,0.2]
[1757337366665,28.7385362,215.6,215.59,0.2]
[1757337366867,29.2585362,215.6,215.59,0.2]
[1757337367381,29.72562746,215.6,215.59,0.2]
[1757337368145,13.59559401,215.59,215.56,0.2]
[1757337368461,13.59559401,215.59,215.53,0.2]
[1757337368462,50.10031728,215.57,215.53,0.2]
[1757337368661,24.10031728,215.54,215.53,0.2]
[1757337369452,13.59559401,215.54,215.53,0.2]
[1757337369763,24.10031728,215.54,215.53,0.2]
[1757337370165,24.10031728,215.54,215.53,0.92]
[1757337370781,24.10031728,215.54,215.53,0.2]
[1757337371159,13.59559401,215.54,215.53,0.92]
[1757337371557,14.06268527,215.54,215.53,0.92]
[1757337371887,14.06268527,215.54,215.53,0.2]
[1757337372250,14.06268527,215.54,215.53,0.92]
[1757337373805,13.59559401,215.54,215.53,5.55972532]
[1757337375985,13.59559401,215.54,215.53,0.92]
[1757337376153,13.59559401,215.54,215.53,0.2]
[1757337376354,24.56740854,215.54,215.53,0.2]
[1757337376988,14.06268527,215.54,215.53,0.2]
[1757337377191,24.56740854,215.54,215.53,0.2]
[1757337377566,14.06268527,215.54,215.53,0.2]
[1757337377760,24.56740854,215.54,215.53,0.2]
[1757337378372,14.06268527,215.54,215.53,0.2]
[1757337378683,24.10031728,215.54,215.53,0.2]
[1757337378870,24.56740854,215.54,215.53,0.2]
[1757337379763,24.10031728,215.54,215.53,0.2]
[1757337380087,14.06268527,215.54,215.53,0.2]
[1757337380465,24.56740854,215.54,215.53,0.2]
[1757337380664,14.06268527,215.54,215.53,0.2]
[1757337380878,24.10031728,215.54,215.53,0.2]
[1757337381386,13.59559401,215.54,215.53,0.2]
[1757337381562,0.46709126,215.57,215.53,5.55972532]
[1757337381764,1.47909122,215.62,215.54,0.72]
[1757337381967,0.52709126,215.67,215.56,26.0]
[1757337382164,10.50472327,215.64,215.57,0.72]
[1757337382388,0.46709126,215.63,215.57,0.72]
[1757337382681,13.59559401,215.62,215.57,0.72]
[1757337383069,10.50472327,215.65,215.57,0.72]
[1757337383272,13.59559401,215.63,215.57,0.72]
[1757337383486,0.46709126,215.62,215.58,40.02]
[1757337383778,0.46709126,215.62,215.59,5.35843406]
[1757337384179,0.46709126,215.62,215.6,0.72]
[1757337384380,14.06268527,215.62,215.61,0.72]
[1757337384879,0.52709126,215.67,215.61,0.72]
[1757337385086,13.59559401,215.66,215.61,0.72]
[1757337385466,0.06,215.67,215.62,26.0]
[1757337385667,0.06,215.67,215.64,16.23075496]
[1757337385867,0.06,215.7,215.67,26.0]
[1757337386062,0.06,215.72,215.67,26.0]
[1757337386304,0.06,215.72,215.68,0.72]
[1757337386760,0.06,215.72,215.69,40.68]
[1757337386964,0.06,215.72,215.71,26.0]
[1757337387192,0.06,215.72,215.64,43.61754776]
[1757337387193,13.59559401,215.71,215.64,8.83735856]
[1757337387420,10.97181453,215.7,215.66,0.72]
[1757337387601,10.97181453,215.7,215.67,0.72]
[1757337387915,0.06,215.72,215.68,45.29649851]
[1757337388202,13.59559401,215.71,215.69,39.92]
[1757337388366,13.59559401,215.71,215.69,40.64]
[1757337388564,13.59559401,215.71,215.69,0.72]
[1757337388765,14.06268527,215.71,215.7,39.9]
[1757337389199,0.06,215.72,215.7,40.62]
[1757337389498,13.59559401,215.7,215.65,26.0]
[1757337389704,10.50472327,215.67,215.66,39.88]
[1757337389999,10.97181453,215.69,215.66,0.72]
[1757337390202,0.46709126,215.69,215.66,40.58]
[1757337390363,10.50472327,215.71,215.67,0.72]
[1757337390568,0.06,215.72,215.69,26.0]
[1757337391093,0.06,215.72,215.7,0.72]
[1757337391307,0.06,215.72,215.71,39.86]
[1757337391609,0.06,215.72,215.71,39.84]
[1757337391916,1e-08,215.72,215.71,45.19585369]
[1757337392114,0.06,215.78,215.74,26.0]
[1757337392614,0.06,215.78,215.75,0.72]
[1757337392809,0.06,215.81,215.79,26.0]
[1757337392992,0.06,215.81,215.8,0.72]
[1757337393185,0.06,215.81,215.8,40.56]
[1757337393386,0.06,215.83,215.8,40.56]
[1757337393607,0.46709126,215.91,215.83,26.0]
[1757337393807,0.46709126,215.9,215.84,16.93571533]
[1757337394009,0.46709126,215.92,215.85,39.82]
[1757337394199,10.97181453,215.92,215.85,39.82]
[1757337394399,0.46709126,215.92,215.85,39.82]
[1757337394600,13.59559401,215.94,215.86,0.72]
[1757337394932,0.46709126,215.93,215.87,39.8]
[1757337395217,13.59559401,215.91,215.85,0.72]
[1757337395388,0.46709126,215.9,215.86,39.78]
[1757337395588,0.46709126,215.9,215.87,0.66]
[1757337395811,13.59559401,215.91,215.88,4.63210597]
[1757337396113,13.59559401,215.88,215.87,39.76]
[1757337396317,24.56740854,215.88,215.87,39.76]
[1757337396614,24.56740854,215.88,215.79,26.0]
[1757337396908,24.56740854,215.88,215.74,23.17587285]
[1757337396909,13.59559401,215.86,215.8,40.42]
[1757337397111,14.06268527,215.86,215.83,26.0]
[1757337397312,14.06268527,215.86,215.83,26.66]
[1757337397818,14.06268527,215.86,215.83,31.29306931]
[1757337397989,13.59559401,215.86,215.83,31.29306931]
[1757337398191,14.06268527,215.86,215.83,31.29306931]
[1757337398811,14.06268527,215.86,215.84,39.76]
[1757337399014,64.39559401,215.85,215.84,39.76]
[1757337399392,5.79844334,215.92,215.84,39.76]
[1757337399393,10.50472327,215.89,215.84,40.42]
[1757337399588,14.06268527,215.88,215.84,40.42]
[1757337399795,14.06268527,215.88,215.86,4.63263226]
[1757337400329,0.46709126,215.93,215.87,26.66]
[1757337400496,13.59559401,215.92,215.88,39.68]
[1757337400693,0.46709126,215.91,215.88,39.68]
[1757337400918,13.59559401,215.9,215.89,39.68]
[1757337401120,13.59559401,215.94,215.89,40.34]
[1757337401413,0.46709126,215.93,215.89,0.66]
[1757337401629,0.46709126,215.93,215.9,39.68]
[1757337401796,0.46709126,215.93,215.91,39.68]
[1757337402409,24.10031728,215.94,215.91,39.68]
[1757337402614,1.16709126,215.93,215.84,0.66]
[1757337402804,13.59559401,215.88,215.85,39.66]
[1757337402999,10.50472327,215.87,215.85,39.66]
[1757337403204,10.50472327,215.88,215.85,39.66]
[1757337403402,0.46709126,215.87,215.85,39.66]
[1757337403724,10.97181453,215.88,215.85,39.66]
[1757337403897,0.46709126,215.91,215.86,0.66]
[1757337404103,13.59559401,215.92,215.87,0.66]
[1757337404397,13.59559401,215.87,215.83,5.29311845]
[1757337404603,24.56740854,215.87,215.84,39.6]
[1757337404905,1.16709126,215.92,215.84,40.26]
[1757337405218,10.50472327,215.86,215.84,39.6]
[1757337405418,50.8,215.85,215.81,31.29370024]
[1757337405621,50.8,215.85,215.84,26.0]
[1757337406818,50.8,215.85,215.84,31.29306152]
[1757337407123,50.8,215.85,215.8,0.66]
[1757337407299,20.62721822,215.82,215.81,39.52]
[1757337407926,20.62721822,215.82,215.78,39.56]
[1757337408100,20.62721822,215.79,215.78,39.56]
[1757337409108,21.32721822,215.79,215.75,39.54]
[1757337409306,13.59559401,215.75,215.72,39.54]
[1757337409805,0.46709126,215.79,215.72,39.54]
[1757337409806,13.59559401,215.78,215.73,5.29529031]
[1757337410113,14.06268527,215.78,215.74,0.66]
[1757337410314,14.06268527,215.78,215.75,0.66]
[1757337410498,14.06268527,215.78,215.76,40.18]
[1757337410829,7.03162421,215.8,215.76,39.52]
[1757337411002,7.03162421,215.77,215.76,39.52]
[1757337411196,7.49871547,215.77,215.76,39.52]
[1757337411927,7.03162421,215.79,215.76,39.52]
[1757337412103,14.06268527,215.77,215.76,39.52]
[1757337413913,14.06268527,215.77,215.74,0.03]
[1757337413914,19.39724985,215.77,215.74,0.03]
[1757337414242,20.62721822,215.75,215.74,0.03]
[1757337414403,21.09430948,215.75,215.74,0.03]
[1757337414834,21.79430948,215.75,215.74,0.03]
[1757337416136,26.42930368,215.75,215.74,0.03]
[1757337418441,19.39767947,215.75,215.74,0.03]
[1757337418617,26.42930368,215.75,215.74,0.03]
[1757337419949,25.72930368,215.75,215.74,0.03]
[1757337420141,26.42930368,215.75,215.74,0.03]
[1757337420640,39.59559401,215.72,215.71,0.03]
[1757337420843,13.59559401,215.62,215.59,39.26]
[1757337421144,13.59559401,215.6,215.59,39.92]
[1757337421841,7.03162421,215.64,215.59,39.92]
[1757337422047,13.59559401,215.62,215.6,0.66]
[1757337422235,0.46709126,215.65,215.61,4.6380038]
[1757337422445,13.59559401,215.71,215.62,0.66]
[1757337422637,13.59559401,215.69,215.62,0.66]
[1757337422843,13.59559401,215.67,215.62,0.66]
[1757337423442,13.09559401,215.7,215.63,4.63757362]
[1757337423652,0.46709126,215.69,215.64,0.66]
[1757337423826,0.46709126,215.72,215.65,39.22]
[1757337424016,0.46709126,215.72,215.66,0.66]
[1757337424923,7.03162421,215.68,215.65,39.22]
[1757337425222,51.26709126,215.67,215.65,39.22]
[1757337425621,64.39559401,215.67,215.66,0.66]
[1757337425825,13.59559401,215.66,215.65,39.22]
[1757337426525,50.8,215.67,215.65,39.88]
[1757337426939,50.8,215.67,215.66,0.66]
[1757337427145,50.8,215.67,215.65,39.88]
[1757337427316,13.59559401,215.66,215.65,39.22]
[1757337427516,13.59559401,215.66,215.62,0.66]
[1757337427716,13.59559401,215.64,215.63,39.12]
[1757337428247,13.59559401,215.66,215.63,39.78]
[1757337428430,13.59559401,215.66,215.64,0.66]
[1757337428632,50.8,215.67,215.63,39.12]
[1757337428834,50.8,215.67,215.65,26.66]